fUSD/lending_fUSD_20260517
["ID","MTS","AMOUNT","RATE_DAILY","PERIOD"]
[422478485,1778986240000,-4248.4516181,0.00026305,2]
[422478498,1778986240000,-151.0,0.00026438,2]
[422478517,1778986240000,-809.591801,0.00026438,2]
[422478489,1778986240000,-361.192932,0.00026305,2]
[422478519,1778986240000,-151.0,0.00026438,2]
[422478538,1778986240000,-500.0,0.00026438,2]
[422478541,1778986240000,-500.0,0.00026438,2]
[422478540,1778986240000,-500.0,0.00026438,2]
[422478542,1778986240000,-500.0,0.00026438,2]
[422478543,1778986240000,-500.0,0.00026438,2]
[422478544,1778986240000,-500.0,0.00026438,2]
[422478536,1778986240000,-500.0,0.00026438,2]
[422478545,1778986240000,-500.0,0.00026438,2]
[422478547,1778986240000,-500.0,0.00026438,2]
[422478549,1778986240000,-210.259162,0.00026438,2]
[422478548,1778986240000,-500.0,0.00026438,2]
[422478550,1778986240000,-151.0,0.00026438,2]
[422478518,1778986240000,-809.591801,0.00026438,2]
[422478551,1778986240000,-151.0,0.00026438,2]
[422478546,1778986240000,-500.0,0.00026438,2]
[422478539,1778986240000,-500.0,0.00026438,2]
[422478494,1778986240000,-10745.1857959,0.00026319,2]
[422478537,1778986240000,-500.0,0.00026438,2]
[422478535,1778986240000,-500.0,0.00026438,2]
[422478520,1778986240000,-151.0,0.00026438,2]
[422478526,1778986240000,-500.0,0.00026438,2]
[422478525,1778986240000,-500.0,0.00026438,2]
[422478521,1778986240000,-500.0,0.00026438,2]
[422478523,1778986240000,-500.0,0.00026438,2]
[422478528,1778986240000,-500.0,0.00026438,2]
[422478522,1778986240000,-500.0,0.00026438,2]
[422478531,1778986240000,-500.0,0.00026438,2]
[422478534,1778986240000,-500.0,0.00026438,2]
[422478527,1778986240000,-500.0,0.00026438,2]
[422478533,1778986240000,-500.0,0.00026438,2]
[422478532,1778986240000,-500.0,0.00026438,2]
[422478524,1778986240000,-500.0,0.00026438,2]
[422478530,1778986240000,-500.0,0.00026438,2]
[422478529,1778986240000,-500.0,0.00026438,2]
[422478588,1778986241000,-150.0,0.00027099,2]
[422478583,1778986241000,-200.0,0.00026904,2]
[422478582,1778986241000,-174.61919141,0.00026903,2]
[422478587,1778986241000,-150.0,0.00027099,4]
[422478589,1778986241000,-150.19263054,0.00027099,2]
[422478592,1778986241000,-150.0,0.00027099,2]
[422478593,1778986241000,-150.0,0.00027099,2]
[422478591,1778986241000,-150.0,0.00027099,2]
[422478590,1778986241000,-150.0,0.00027099,2]
[422478595,1778986241000,-150.0,0.00027099,2]
[422478594,1778986241000,-150.0,0.00027099,2]
[422478586,1778986241000,-832.43,0.00027,7]
[422478601,1778986241000,-217.48564074,0.00027123,2]
[422478599,1778986241000,-500.0,0.00027123,2]
[422478596,1778986241000,-150.0,0.00027099,2]
[422478597,1778986241000,-6706.23662874,0.00027099,2]
[422478598,1778986241000,-264.0,0.000271,7]
[422478584,1778986241000,-200.0,0.00026904,2]
[422478602,1778986241000,-163.33619208,0.00027123,20]
[422478603,1778986241000,-9033.0,0.00027123,2]
[422478604,1778986241000,-150.0,0.00027137,4]
[422478608,1778986241000,-150.0,0.00027175,4]
[422478606,1778986241000,-200.0,0.00027173,2]
[422478607,1778986241000,-200.0,0.00027173,2]
[422478605,1778986241000,-536.0,0.00027137,2]
[422478609,1778986241000,-150.0,0.00027213,4]
[422478600,1778986241000,-500.0,0.00027123,2]
[422478585,1778986241000,-587.0,0.0002699,2]
[422478575,1778986241000,-615.0,0.00026699,5]
[422478579,1778986241000,-156.087,0.00026835,14]
[422478612,1778986241000,-150.0,0.00027235,4]
[422478552,1778986241000,-151.0,0.00026438,2]
[422478554,1778986241000,-151.0,0.00026438,2]
[422478553,1778986241000,-151.0,0.00026438,2]
[422478555,1778986241000,-350.0,0.00026499,2]
[422478556,1778986241000,-303.0,0.00026517,2]
[422478557,1778986241000,-10276.8416,0.00026538,2]
[422478559,1778986241000,-350.0,0.0002661,2]
[422478558,1778986241000,-2000.0,0.00026538,2]
[422478561,1778986241000,-500.0,0.00026637,2]
[422478560,1778986241000,-476.1886123,0.00026637,2]
[422478562,1778986241000,-500.0,0.00026637,2]
[422478563,1778986241000,-500.0,0.00026637,2]
[422478565,1778986241000,-500.0,0.00026637,2]
[422478567,1778986241000,-377.02817999,0.00026637,2]
[422478566,1778986241000,-500.0,0.00026637,2]
[422478569,1778986241000,-511.76912385,0.00026637,2]
[422478568,1778986241000,-500.0,0.00026637,2]
[422478573,1778986241000,-9214.36743295,0.00026638,2]
[422478570,1778986241000,-200.0,0.00026638,2]
[422478574,1778986241000,-8962.7054586,0.00026643,2]
[422478572,1778986241000,-1550.6490804,0.00026638,2]
[422478571,1778986241000,-200.0,0.00026638,2]
[422478577,1778986241000,-5000.0,0.00026834,2]
[422478576,1778986241000,-151.0,0.00026735,7]
[422478578,1778986241000,-3044.875,0.00026835,14]
[422478580,1778986241000,-152.0,0.00026903,2]
[422478581,1778986241000,-233.15289178,0.00026903,2]
[422478564,1778986241000,-500.0,0.00026637,2]
[422478610,1778986241000,-150.0,0.00027214,4]
[422478614,1778986241000,-150.0,0.00027251,4]
[422478646,1778986241000,-11127.89,0.00027397,10]
[422478647,1778986241000,-9273.25,0.00027397,10]
[422478643,1778986241000,-371.903411,0.00027397,2]
[422478653,1778986241000,-150.0,0.00027442,7]
[422478649,1778986241000,-9004.33,0.000274,14]
[422478650,1778986241000,-150.0,0.00027404,7]
[422478651,1778986241000,-152.0,0.00027405,7]
[422478652,1778986241000,-350.0,0.00027406,2]
[422478657,1778986241000,-181.08010149,0.00027451,2]
[422478654,1778986241000,-200.0,0.00027445,2]
[422478656,1778986241000,-150.0,0.00027446,7]
[422478655,1778986241000,-200.0,0.00027445,2]
[422478641,1778986241000,-371.903411,0.00027397,2]
[422478658,1778986241000,-150.0,0.00027475,7]
[422478660,1778986241000,-150.0,0.00027491,7]
[422478664,1778986241000,-165.89563479,0.00027517,2]
[422478661,1778986241000,-150.0,0.00027509,7]
[422478662,1778986241000,-150.0,0.00027509,7]
[422478663,1778986241000,-559.65744932,0.00027517,2]
[422478666,1778986241000,-150.0,0.00027518,7]
[422478667,1778986241000,-150.0,0.00027529,4]
[422478668,1778986241000,-150.0,0.00027556,7]
[422478669,1778986241000,-150.0,0.00027562,7]
[422478665,1778986241000,-1820.53233,0.00027517,2]
[422478670,1778986241000,-150.0,0.00027594,7]
[422478611,1778986241000,-150.0,0.0002723,4]
[422478659,1778986241000,-150.0,0.0002748,7]
[422478644,1778986241000,-371.903411,0.00027397,2]
[422478636,1778986241000,-154.825419,0.00027397,2]
[422478648,1778986241000,-150.0,0.000274,7]
[422478645,1778986241000,-13353.47,0.00027397,10]
[422478613,1778986241000,-150.0,0.00027235,4]
[422478615,1778986241000,-150.0,0.00027289,4]
[422478616,1778986241000,-150.0,0.00027314,4]
[422478618,1778986241000,-150.0,0.0002733,4]
[422478619,1778986241000,-153.473451,0.00027339,2]
[422478622,1778986241000,-279.0,0.00027364,2]
[422478617,1778986241000,-150.0,0.00027327,4]
[422478621,1778986241000,-150.0,0.0002736,4]
[422478623,1778986241000,-150.0,0.00027364,2]
[422478624,1778986241000,-215.0,0.00027364,2]
[422478627,1778986241000,-150.0,0.00027372,4]
[422478626,1778986241000,-150.0,0.00027372,4]
[422478620,1778986241000,-402.32579799,0.0002736,4]
[422478629,1778986241000,-1500.0,0.00027397,2]
[422478640,1778986241000,-299.822509,0.00027397,2]
[422478642,1778986241000,-371.903411,0.00027397,2]
[422478625,1778986241000,-150.0,0.00027365,4]
[422478638,1778986241000,-299.822509,0.00027397,2]
[422478637,1778986241000,-299.822509,0.00027397,2]
[422478634,1778986241000,-227.999123,0.00027397,2]
[422478639,1778986241000,-299.822509,0.00027397,2]
[422478635,1778986241000,-300.0,0.00027397,2]
[422478632,1778986241000,-227.999123,0.00027397,2]
[422478633,1778986241000,-227.999123,0.00027397,2]
[422478630,1778986241000,-215.0785988,0.00027397,10]
[422478631,1778986241000,-227.999123,0.00027397,2]
[422478628,1778986241000,-376.8821813,0.00027397,2]
[422478737,1778986242000,-920.0,0.00028134,2]
[422478730,1778986242000,-1150.0,0.00028134,2]
[422478731,1778986242000,-1150.0,0.00028134,2]
[422478734,1778986242000,-1150.0,0.00028134,2]
[422478733,1778986242000,-1150.0,0.00028134,2]
[422478736,1778986242000,-1150.0,0.00028134,2]
[422478744,1778986242000,-1150.0,0.00028165,2]
[422478740,1778986242000,-1150.0,0.00028165,2]
[422478745,1778986242000,-1150.0,0.00028165,2]
[422478742,1778986242000,-1150.0,0.00028165,2]
[422478739,1778986242000,-150.0,0.00028146,7]
[422478741,1778986242000,-1150.0,0.00028165,2]
[422478743,1778986242000,-1150.0,0.00028165,2]
[422478746,1778986242000,-1150.0,0.00028165,2]
[422478732,1778986242000,-1150.0,0.00028134,2]
[422478738,1778986242000,-150.0,0.00028141,7]
[422478735,1778986242000,-1150.0,0.00028134,2]
[422478717,1778986242000,-150.0,0.00028015,7]
[422478727,1778986242000,-150.0,0.00028128,7]
[422478712,1778986242000,-187.78006525,0.00027999,2]
[422478711,1778986242000,-153.0,0.00027989,2]
[422478714,1778986242000,-188.45,0.00028,2]
[422478713,1778986242000,-53607.2600501,0.00028,2]
[422478716,1778986242000,-150.0,0.00028013,7]
[422478715,1778986242000,-150.0,0.00028002,7]
[422478748,1778986242000,-1150.0,0.00028165,2]
[422478718,1778986242000,-150.0,0.00028025,7]
[422478719,1778986242000,-5063.51028316,0.00028038,2]
[422478720,1778986242000,-150.0,0.00028051,7]
[422478721,1778986242000,-150.0,0.00028057,7]
[422478722,1778986242000,-150.0,0.00028057,7]
[422478724,1778986242000,-150.0,0.0002809,7]
[422478723,1778986242000,-350.0,0.00028071,2]
[422478725,1778986242000,-215.0785988,0.000281,7]
[422478726,1778986242000,-1820.53233,0.00028117,2]
[422478728,1778986242000,-1150.0,0.00028134,2]
[422478729,1778986242000,-1150.0,0.00028134,2]
[422478750,1778986242000,-150.0,0.00028166,7]
[422478761,1778986242000,-150.0,0.00028228,7]
[422478747,1778986242000,-1150.0,0.00028165,2]
[422478772,1778986242000,-150.0,0.0002833,7]
[422478773,1778986242000,-650.0,0.00028331,2]
[422478776,1778986242000,-650.0,0.00028331,2]
[422478774,1778986242000,-650.0,0.00028331,2]
[422478777,1778986242000,-650.0,0.00028331,2]
[422478775,1778986242000,-650.0,0.00028331,2]
[422478779,1778986242000,-650.0,0.00028331,2]
[422478770,1778986242000,-150.0,0.00028318,7]
[422478781,1778986242000,-650.0,0.00028331,2]
[422478780,1778986242000,-650.0,0.00028331,2]
[422478783,1778986242000,-5063.51028316,0.00028331,2]
[422478784,1778986242000,-150.0,0.00028356,7]
[422478785,1778986242000,-1150.0,0.00028368,2]
[422478786,1778986242000,-1150.0,0.00028368,2]
[422478787,1778986242000,-1150.0,0.00028368,2]
[422478710,1778986242000,-300.0,0.00027989,2]
[422478782,1778986242000,-627.0,0.00028331,2]
[422478749,1778986242000,-1094.0,0.00028165,2]
[422478763,1778986242000,-150.0,0.00028257,7]
[422478766,1778986242000,-150.0,0.00028277,7]
[422478752,1778986242000,-150.0,0.00028194,7]
[422478751,1778986242000,-150.0,0.00028174,4]
[422478754,1778986242000,-832.43,0.000282,7]
[422478753,1778986242000,-150.0,0.00028194,7]
[422478756,1778986242000,-314.0,0.000282,2]
[422478755,1778986242000,-1000.0,0.000282,2]
[422478757,1778986242000,-884.0,0.000282,2]
[422478771,1778986242000,-150.0,0.0002833,7]
[422478758,1778986242000,-308.0,0.000282,2]
[422478762,1778986242000,-150.0,0.00028242,7]
[422478759,1778986242000,-150.0,0.00028204,7]
[422478764,1778986242000,-466.67814849,0.00028257,2]
[422478768,1778986242000,-150.0,0.00028303,7]
[422478767,1778986242000,-150.0,0.0002828,7]
[422478769,1778986242000,-1820.53233,0.00028317,2]
[422478765,1778986242000,-151.0,0.00028267,2]
[422478760,1778986242000,-536.0,0.00028205,3]
[422478778,1778986242000,-650.0,0.00028331,2]
[422478707,1778986242000,-150.0,0.00027959,4]
[422478708,1778986242000,-150.0,0.00027975,7]
[422478686,1778986242000,-150.0,0.00027744,4]
[422478681,1778986242000,-150.0,0.00027701,7]
[422478683,1778986242000,-1820.53233,0.00027717,2]
[422478685,1778986242000,-200.0,0.0002772,2]
[422478682,1778986242000,-150.0,0.00027708,7]
[422478678,1778986242000,-536.0,0.00027671,2]
[422478684,1778986242000,-200.0,0.0002772,2]
[422478688,1778986242000,-159.12,0.00027749,2]
[422478680,1778986242000,-373.0,0.00027691,2]
[422478679,1778986242000,-150.0,0.00027678,7]
[422478675,1778986242000,-665.32569786,0.00027666,2]
[422478673,1778986242000,-150.0,0.00027646,7]
[422478674,1778986242000,-150.0,0.00027646,7]
[422478671,1778986242000,-150.0,0.00027622,7]
[422478672,1778986242000,-150.0,0.00027632,7]
[422478706,1778986242000,-150.0,0.00027937,7]
[422478677,1778986242000,-150.0,0.0002767,7]
[422478687,1778986242000,-150.0,0.00027747,7]
[422478676,1778986242000,-5063.51028316,0.00027669,2]
[422478692,1778986242000,-150.0,0.00027783,7]
[422478689,1778986242000,-150.0,0.00027753,7]
[422478709,1778986242000,-488.0,0.00027989,2]
[422478705,1778986242000,-150.0,0.0002792,7]
[422478702,1778986242000,-5063.51028316,0.00027914,2]
[422478703,1778986242000,-1820.53234,0.00027917,2]
[422478699,1778986242000,-150.0,0.00027884,7]
[422478698,1778986242000,-150.0,0.00027861,7]
[422478700,1778986242000,-150.0,0.00027899,7]
[422478704,1778986242000,-150.0,0.0002792,7]
[422478693,1778986242000,-150.0,0.00027785,7]
[422478695,1778986242000,-500.0,0.000278,7]
[422478694,1778986242000,-150.0,0.00027793,7]
[422478696,1778986242000,-150.0,0.00027823,7]
[422478697,1778986242000,-150.0,0.00027851,7]
[422478691,1778986242000,-150.0,0.00027783,7]
[422478701,1778986242000,-150.0,0.00027909,7]
[422478690,1778986242000,-166.66,0.0002777,2]
[422478830,1778986243000,-423.07,0.0002863,2]
[422478829,1778986243000,-1718.73,0.0002863,2]
[422478828,1778986243000,-698.49,0.0002863,2]
[422478827,1778986243000,-150.0,0.00028623,7]
[422478826,1778986243000,-355.3,0.00028605,2]
[422478824,1778986243000,-150.0,0.00028604,7]
[422478825,1778986243000,-150.0,0.00028604,7]
[422478822,1778986243000,-150.0,0.00028604,7]
[422478821,1778986243000,-150.0,0.00028604,7]
[422478832,1778986243000,-698.33,0.0002863,2]
[422478820,1778986243000,-150.0,0.00028604,7]
[422478823,1778986243000,-150.0,0.00028604,7]
[422478833,1778986243000,-2842.58,0.0002863,2]
[422478842,1778986243000,-150.0,0.00028661,7]
[422478834,1778986243000,-1720.62,0.0002863,2]
[422478836,1778986243000,-1718.73,0.00028661,7]
[422478838,1778986243000,-2839.45,0.00028661,7]
[422478840,1778986243000,-2842.58,0.00028661,7]
[422478835,1778986243000,-698.49,0.00028661,7]
[422478841,1778986243000,-1720.62,0.00028661,7]
[422478837,1778986243000,-423.07,0.00028661,7]
[422478844,1778986243000,-698.49,0.00028693,30]
[422478843,1778986243000,-150.0,0.0002867,7]
[422478845,1778986243000,-1718.73,0.00028693,30]
[422478846,1778986243000,-423.07,0.00028693,30]
[422478818,1778986243000,-5063.51028316,0.00028603,2]
[422478831,1778986243000,-2839.45,0.0002863,2]
[422478819,1778986243000,-150.0,0.00028604,4]
[422478798,1778986243000,-150.0,0.00028394,7]
[422478812,1778986243000,-5063.51028316,0.00028565,2]
[422478790,1778986243000,-1150.0,0.00028368,2]
[422478788,1778986243000,-1150.0,0.00028368,2]
[422478789,1778986243000,-1150.0,0.00028368,2]
[422478791,1778986243000,-1150.0,0.00028368,2]
[422478793,1778986243000,-1150.0,0.00028368,2]
[422478794,1778986243000,-883.0,0.00028368,2]
[422478792,1778986243000,-1150.0,0.00028368,2]
[422478795,1778986243000,-150.0,0.00028372,7]
[422478797,1778986243000,-150.0,0.00028389,4]
[422478847,1778986243000,-2839.45,0.00028693,30]
[422478803,1778986243000,-150.0,0.00028467,7]
[422478799,1778986243000,-150.0,0.00028408,7]
[422478817,1778986243000,-9004.33,0.000286,14]
[422478802,1778986243000,-150.0,0.00028467,7]
[422478796,1778986243000,-5063.51028316,0.00028385,2]
[422478801,1778986243000,-150.0,0.00028433,7]
[422478804,1778986243000,-5063.51028316,0.00028469,2]
[422478807,1778986243000,-150.0,0.00028509,7]
[422478806,1778986243000,-150.0,0.00028488,7]
[422478805,1778986243000,-150.0,0.00028471,7]
[422478808,1778986243000,-1820.53234,0.00028517,2]
[422478810,1778986243000,-150.0,0.00028547,7]
[422478811,1778986243000,-194.72792766,0.00028547,2]
[422478809,1778986243000,-150.0,0.00028539,7]
[422478816,1778986243000,-150.0,0.00028585,7]
[422478814,1778986243000,-166.66,0.0002858,2]
[422478800,1778986243000,-5063.51028316,0.0002841,2]
[422478851,1778986243000,-150.0,0.00028699,7]
[422478839,1778986243000,-698.33,0.00028661,7]
[422478852,1778986243000,-215.0785988,0.000287,30]
[422478882,1778986243000,-5063.51028316,0.00028773,2]
[422478884,1778986243000,-698.49,0.00028788,30]
[422478887,1778986243000,-2839.45,0.00028788,30]
[422478885,1778986243000,-1718.73,0.00028788,30]
[422478883,1778986243000,-150.0,0.00028776,7]
[422478889,1778986243000,-2842.58,0.00028788,30]
[422478886,1778986243000,-423.07,0.00028788,30]
[422478888,1778986243000,-698.33,0.00028788,30]
[422478890,1778986243000,-1720.62,0.00028788,30]
[422478892,1778986243000,-350.0,0.00028813,2]
[422478891,1778986243000,-150.0,0.000288,7]
[422478893,1778986243000,-150.0,0.00028814,7]
[422478894,1778986243000,-150.0,0.00028819,4]
[422478897,1778986243000,-1718.73,0.0002882,2]
[422478899,1778986243000,-2839.45,0.0002882,2]
[422478898,1778986243000,-423.07,0.0002882,2]
[422478895,1778986243000,-698.49,0.0002882,2]
[422478901,1778986243000,-2842.58,0.0002882,2]
[422478900,1778986243000,-698.33,0.0002882,2]
[422478902,1778986243000,-1720.62,0.0002882,2]
[422478904,1778986243000,-150.0,0.00028836,7]
[422478906,1778986243000,-150.0,0.00028852,7]
[422478907,1778986243000,-698.49,0.00028852,7]
[422478909,1778986243000,-1718.73,0.00028852,7]
[422478913,1778986243000,-2839.45,0.00028852,7]
[422478915,1778986243000,-698.33,0.00028852,7]
[422478849,1778986243000,-2842.58,0.00028693,30]
[422478881,1778986243000,-159.12,0.00028768,2]
[422478878,1778986243000,-1720.62,0.00028756,7]
[422478911,1778986243000,-423.07,0.00028852,7]
[422478879,1778986243000,-1222.4825337,0.00028767,30]
[422478880,1778986243000,-215.498386,0.00028767,7]
[422478848,1778986243000,-698.33,0.00028693,30]
[422478853,1778986243000,-150.0,0.0002872,7]
[422478856,1778986243000,-1718.73,0.00028725,2]
[422478855,1778986243000,-698.49,0.00028725,2]
[422478854,1778986243000,-355.31,0.00028725,2]
[422478857,1778986243000,-423.07,0.00028725,2]
[422478860,1778986243000,-2842.58,0.00028725,2]
[422478859,1778986243000,-698.33,0.00028725,2]
[422478861,1778986243000,-1720.62,0.00028725,2]
[422478858,1778986243000,-2839.45,0.00028725,2]
[422478863,1778986243000,-150.0,0.00028738,7]
[422478862,1778986243000,-5063.51028316,0.00028725,2]
[422478850,1778986243000,-1720.62,0.00028693,30]
[422478865,1778986243000,-201.727795,0.00028738,7]
[422478864,1778986243000,-196.962396,0.00028738,7]
[422478869,1778986243000,-150.0,0.00028741,7]
[422478875,1778986243000,-2839.45,0.00028756,7]
[422478876,1778986243000,-698.33,0.00028756,7]
[422478872,1778986243000,-698.49,0.00028756,7]
[422478870,1778986243000,-350.0,0.00028741,2]
[422478874,1778986243000,-423.07,0.00028756,7]
[422478873,1778986243000,-1718.73,0.00028756,7]
[422478868,1778986243000,-150.0,0.00028741,7]
[422478877,1778986243000,-2842.58,0.00028756,7]
[422478866,1778986243000,-355.31,0.00028738,2]
[422478867,1778986243000,-536.0,0.00028739,3]
[422478871,1778986243000,-532.96,0.00028751,2]
[422478966,1778986244000,-180.6,0.00028944,2]
[422478964,1778986244000,-150.0,0.00028928,7]
[422478965,1778986244000,-150.0,0.00028931,7]
[422478962,1778986244000,-1720.62,0.00028915,2]
[422478957,1778986244000,-1718.73,0.00028915,2]
[422478960,1778986244000,-698.33,0.00028915,2]
[422478958,1778986244000,-423.07,0.00028915,2]
[422478959,1778986244000,-2839.45,0.00028915,2]
[422478953,1778986244000,-215.0785988,0.000289,7]
[422478963,1778986244000,-158.62,0.00028916,2]
[422478955,1778986244000,-150.0,0.00028905,7]
[422478961,1778986244000,-2842.58,0.00028915,2]
[422478967,1778986244000,-240.78989205,0.00028944,2]
[422478970,1778986244000,-1718.73,0.00028947,7]
[422478974,1778986244000,-2842.58,0.00028947,7]
[422478978,1778986244000,-288.27,0.00028958,2]
[422478976,1778986244000,-150.0,0.00028952,7]
[422478973,1778986244000,-698.33,0.00028947,7]
[422478968,1778986244000,-180.6,0.00028947,2]
[422478977,1778986244000,-158.62,0.00028955,2]
[422478971,1778986244000,-423.07,0.00028947,7]
[422478975,1778986244000,-1720.62,0.00028947,7]
[422478979,1778986244000,-190.34,0.00028958,2]
[422478972,1778986244000,-2839.45,0.00028947,7]
[422478982,1778986244000,-150.0,0.00028966,7]
[422478956,1778986244000,-698.49,0.00028915,2]
[422478983,1778986244000,-190.34,0.00028969,2]
[422478969,1778986244000,-698.49,0.00028947,7]
[422478954,1778986244000,-5063.51028316,0.00028902,2]
[422478935,1778986244000,-600.0,0.00028883,30]
[422478952,1778986244000,-150.0,0.0002889,7]
[422478981,1778986244000,-5063.51028316,0.00028958,2]
[422478919,1778986244000,-1720.62,0.00028852,7]
[422478917,1778986244000,-2842.58,0.00028852,7]
[422478921,1778986244000,-150.0,0.00028878,7]
[422478923,1778986244000,-150.0,0.00028878,7]
[422478927,1778986244000,-1718.73,0.00028883,30]
[422478930,1778986244000,-2839.45,0.00028883,30]
[422478929,1778986244000,-423.07,0.00028883,30]
[422478931,1778986244000,-698.33,0.00028883,30]
[422478933,1778986244000,-1720.62,0.00028883,30]
[422478932,1778986244000,-2842.58,0.00028883,30]
[422478934,1778986244000,-600.0,0.00028883,30]
[422478936,1778986244000,-600.0,0.00028883,30]
[422478939,1778986244000,-500.0,0.00028883,30]
[422478938,1778986244000,-408.0,0.00028883,30]
[422478937,1778986244000,-600.0,0.00028883,30]
[422478943,1778986244000,-500.0,0.00028883,30]
[422478944,1778986244000,-361.0,0.00028883,30]
[422478941,1778986244000,-500.0,0.00028883,30]
[422478942,1778986244000,-500.0,0.00028883,30]
[422478940,1778986244000,-500.0,0.00028883,30]
[422478949,1778986244000,-500.0,0.00028883,30]
[422478950,1778986244000,-500.0,0.00028883,30]
[422478945,1778986244000,-1619.0,0.00028883,30]
[422478947,1778986244000,-500.0,0.00028883,30]
[422478951,1778986244000,-317.0,0.00028883,30]
[422478946,1778986244000,-500.0,0.00028883,30]
[422478948,1778986244000,-500.0,0.00028883,30]
[422478980,1778986244000,-190.34,0.00028958,2]
[422478925,1778986244000,-698.49,0.00028883,30]
[422478985,1778986244000,-1718.73,0.00028979,30]
[422479020,1778986244000,-2839.45,0.00029074,30]
[422479014,1778986244000,-150.0,0.00029062,7]
[422479016,1778986244000,-423.22,0.00029074,30]
[422479021,1778986244000,-698.33,0.00029074,30]
[422479024,1778986244000,-150.0,0.00029081,7]
[422479025,1778986244000,-201.93286099,0.00029095,2]
[422479022,1778986244000,-2842.58,0.00029074,30]
[422479023,1778986244000,-1720.62,0.00029074,30]
[422479026,1778986244000,-423.22,0.00029105,2]
[422479027,1778986244000,-698.49,0.00029105,2]
[422479028,1778986244000,-1718.73,0.00029105,2]
[422479030,1778986244000,-2839.45,0.00029105,2]
[422479029,1778986244000,-423.07,0.00029105,2]
[422479017,1778986244000,-698.49,0.00029074,30]
[422479031,1778986244000,-698.33,0.00029105,2]
[422479033,1778986244000,-1720.62,0.00029105,2]
[422479034,1778986244000,-150.0,0.00029119,7]
[422479035,1778986244000,-350.0,0.0002912,2]
[422479036,1778986244000,-423.22,0.00029137,7]
[422479037,1778986244000,-698.49,0.00029137,7]
[422479038,1778986244000,-1718.73,0.00029137,7]
[422479039,1778986244000,-423.07,0.00029137,7]
[422479040,1778986244000,-2839.45,0.00029137,7]
[422479041,1778986244000,-698.33,0.00029137,7]
[422479045,1778986244000,-150.0,0.00029152,7]
[422479043,1778986244000,-1720.62,0.00029137,7]
[422479042,1778986244000,-2842.58,0.00029137,7]
[422478984,1778986244000,-698.49,0.00028979,30]
[422479032,1778986244000,-2842.58,0.00029105,2]
[422479019,1778986244000,-423.07,0.00029074,30]
[422479044,1778986244000,-150.0,0.00029152,7]
[422479013,1778986244000,-150.0,0.00029042,7]
[422479018,1778986244000,-1718.73,0.00029074,30]
[422478990,1778986244000,-1720.62,0.00028979,30]
[422478991,1778986244000,-150.0,0.0002898,7]
[422478987,1778986244000,-2839.45,0.00028979,30]
[422478988,1778986244000,-698.33,0.00028979,30]
[422478989,1778986244000,-2842.58,0.00028979,30]
[422478992,1778986244000,-215.0785988,0.00029,30]
[422478993,1778986244000,-215.0785988,0.00029,7]
[422478986,1778986244000,-423.07,0.00028979,30]
[422478997,1778986244000,-423.07,0.0002901,2]
[422478994,1778986244000,-150.0,0.00029004,7]
[422478996,1778986244000,-1718.73,0.0002901,2]